[Event "Live Chess"]
[Site "Chess.com"]
[Date "2024.06.01"]
[Round "-"]
[White "JohanKjeldahl"]
[Black "jimwad"]
[Result "1-0"]
[WhiteElo "1812"]
[BlackElo "1245"]
[TimeControl "300"]
[EndTime "11:41:40 PDT"]
[Termination "JohanKjeldahl won by resignation"]

1. e4 {[%clk 0:04:56.9]} 1... e5 {[%clk 0:04:59.1]} 2. Nf3 {[%clk 0:04:54.8]}
2... Nc6 {[%clk 0:04:57.9]} 3. d4 {[%clk 0:04:53.6]} 3... exd4 {[%clk
0:04:56.1]} 4. c3 {[%clk 0:04:52.7]} 4... Bc5 {[%clk 0:04:50.7]} 5. cxd4 {[%clk
0:04:48]} 5... Bb4+ {[%clk 0:04:48.4]} 6. Nc3 {[%clk 0:04:46.9]} 6... Bxc3+
{[%clk 0:04:45.4]} 7. bxc3 {[%clk 0:04:45.1]} 7... Nge7 {[%clk 0:04:42.9]} 8.
Bc4 {[%clk 0:04:42.8]} 8... O-O {[%clk 0:04:41.3]} 9. O-O {[%clk 0:04:41.6]}
9... d6 {[%clk 0:04:40.1]} 10. Bg5 {[%clk 0:04:40.1]} 10... Bg4 {[%clk 0:04:38]}
11. h3 {[%clk 0:04:38.6]} 11... Bh5 {[%clk 0:04:35.9]} 12. Qd3 {[%clk 0:04:32]}
12... Bg6 {[%clk 0:04:32.5]} 13. Nh4 {[%clk 0:04:18.2]} 13... Kh8 {[%clk
0:04:26.3]} 14. f4 {[%clk 0:03:58.1]} 14... f6 {[%clk 0:04:15.2]} 15. Nxg6+
{[%clk 0:03:28.8]} 15... Nxg6 {[%clk 0:04:12.9]} 16. f5 {[%clk 0:03:25.1]} 16...
Nge7 {[%clk 0:03:46]} 17. Bf4 {[%clk 0:03:19.1]} 17... Na5 {[%clk 0:03:36.9]}
18. Be6 {[%clk 0:03:17.8]} 18... c6 {[%clk 0:03:16.8]} 19. Rab1 {[%clk
0:03:10.9]} 19... b5 {[%clk 0:03:14.6]} 20. Qg3 {[%clk 0:03:04.8]} 20... Nb7
{[%clk 0:03:09.7]} 21. Rf3 {[%clk 0:02:47.5]} 21... d5 {[%clk 0:02:56.1]} 22. e5
{[%clk 0:02:44.4]} 22... Ng8 {[%clk 0:02:39.3]} 23. Qg4 {[%clk 0:02:32.5]} 23...
fxe5 {[%clk 0:02:27.3]} 24. Rg3 {[%clk 0:02:30.4]} 24... Qe7 {[%clk 0:02:20]}
25. dxe5 {[%clk 0:02:20.6]} 25... Nd8 {[%clk 0:02:12]} 26. f6 {[%clk 0:02:17.6]}
26... Nxf6 {[%clk 0:02:05.3]} 27. exf6 {[%clk 0:02:10.9]} 27... Qxf6 {[%clk
0:02:01.2]} 28. Re1 {[%clk 0:01:53.9]} 28... a5 {[%clk 0:01:40.8]} 29. Be5
{[%clk 0:01:49.7]} 1-0

[Event "Live Chess"]
[Site "Chess.com"]
[Date "2024.06.01"]
[Round "-"]
[White "elephantgerrald"]
[Black "sebmoran1"]
[Result "0-1"]
[WhiteElo "753"]
[BlackElo "1473"]
[TimeControl "300"]
[EndTime "11:41:57 PDT"]
[Termination "sebmoran1 won by checkmate"]

1. e4 {[%clk 0:04:57.8]} 1... c5 {[%clk 0:04:59.1]} 2. Nf3 {[%clk 0:04:56]} 2...
Nc6 {[%clk 0:04:58.4]} 3. Nc3 {[%clk 0:04:53.7]} 3... e6 {[%clk 0:04:57.3]} 4.
Bb5 {[%clk 0:04:50.7]} 4... a6 {[%clk 0:04:54.8]} 5. Bxc6 {[%clk 0:04:49.3]}
5... bxc6 {[%clk 0:04:54.7]} 6. O-O {[%clk 0:04:47.4]} 6... d5 {[%clk
0:04:54.2]} 7. exd5 {[%clk 0:04:45.7]} 7... cxd5 {[%clk 0:04:54.1]} 8. Ne5
{[%clk 0:04:42.3]} 8... Nf6 {[%clk 0:04:53.1]} 9. Nc6 {[%clk 0:04:26.9]} 9...
Qc7 {[%clk 0:04:48.7]} 10. Re1 {[%clk 0:02:40.7]} 10... Qxc6 {[%clk 0:04:34.5]}
11. d3 {[%clk 0:02:21.7]} 11... Be7 {[%clk 0:04:31.4]} 12. Bg5 {[%clk
0:00:36.5]} 12... Bb7 {[%clk 0:04:15.1]} 13. Bxf6 {[%clk 0:00:34.7]} 13... Bxf6
{[%clk 0:04:13.2]} 14. Qe2 {[%clk 0:00:33.1]} 14... d4 {[%clk 0:04:12]} 15. Ne4
{[%clk 0:00:31.6]} 15... O-O {[%clk 0:04:06.9]} 16. Nxf6+ {[%clk 0:00:30]} 16...
gxf6 {[%clk 0:04:06.8]} 17. Qg4+ {[%clk 0:00:28.2]} 17... Kh8 {[%clk 0:04:06]}
18. f3 {[%clk 0:00:27]} 18... f5 {[%clk 0:04:04.3]} 19. Qh5 {[%clk 0:00:25.8]}
19... Rg8 {[%clk 0:04:01.5]} 20. Qxf7 {[%clk 0:00:24.4]} 20... Qxf3 {[%clk
0:03:55.3]} 21. Rf1 {[%clk 0:00:04.2]} 21... Qxg2# {[%clk 0:03:53.3]} 0-1

[Event "Live Chess"]
[Site "Chess.com"]
[Date "2024.06.01"]
[Round "-"]
[White "Ferrarifan27"]
[Black "LanceMaster23"]
[Result "0-1"]
[WhiteElo "2049"]
[BlackElo "1821"]
[TimeControl "300"]
[EndTime "11:41:59 PDT"]
[Termination "LanceMaster23 won by resignation"]

1. e4 {[%clk 0:04:53.6]} 1... c6 {[%clk 0:04:58.5]} 2. d4 {[%clk 0:04:52]} 2...
d5 {[%clk 0:04:57.8]} 3. e5 {[%clk 0:04:51.3]} 3... c5 {[%clk 0:04:54.5]} 4.
dxc5 {[%clk 0:04:49.6]} 4... Nc6 {[%clk 0:04:51.9]} 5. a3 {[%clk 0:04:47.2]}
5... Nxe5 {[%clk 0:04:49.1]} 6. b4 {[%clk 0:04:43.7]} 6... Nf6 {[%clk
0:04:47.5]} 7. Bb2 {[%clk 0:04:42.1]} 7... Ng6 {[%clk 0:04:42.1]} 8. Nf3 {[%clk
0:04:39.8]} 8... e6 {[%clk 0:04:37.7]} 9. Bb5+ {[%clk 0:04:33.7]} 9... Bd7
{[%clk 0:04:36.3]} 10. Bxd7+ {[%clk 0:04:32.8]} 10... Qxd7 {[%clk 0:04:35.6]}
11. O-O {[%clk 0:04:25.9]} 11... Be7 {[%clk 0:04:32.5]} 12. Re1 {[%clk
0:04:23.5]} 12... O-O {[%clk 0:04:30.9]} 13. Nbd2 {[%clk 0:04:20.1]} 13... a5
{[%clk 0:04:29.4]} 14. Qe2 {[%clk 0:04:14.1]} 14... axb4 {[%clk 0:04:16.6]} 15.
axb4 {[%clk 0:04:12.4]} 15... b6 {[%clk 0:04:15.8]} 16. cxb6 {[%clk 0:04:03.3]}
16... Bxb4 {[%clk 0:04:08.3]} 17. Bxf6 {[%clk 0:04:01]} 17... gxf6 {[%clk
0:04:03.9]} 18. Qe3 {[%clk 0:03:53.7]} 18... Qc6 {[%clk 0:03:43.4]} 19. Rxa8
{[%clk 0:03:24.6]} 19... Rxa8 {[%clk 0:03:41.5]} 20. Rb1 {[%clk 0:03:22.4]}
20... Bc5 {[%clk 0:03:36.3]} 21. Qc3 {[%clk 0:03:18.6]} 21... Bxf2+ {[%clk
0:03:26.8]} 22. Kxf2 {[%clk 0:03:17.2]} 22... Qxc3 {[%clk 0:03:25.8]} 23. b7
{[%clk 0:03:16]} 23... Rb8 {[%clk 0:03:19.1]} 0-1

[Event "Live Chess"]
[Site "Chess.com"]
[Date "2024.06.01"]
[Round "-"]
[White "educatedlad"]
[Black "MagnersCarlsberg2870"]
[Result "1-0"]
[WhiteElo "1761"]
[BlackElo "1882"]
[TimeControl "300"]
[EndTime "11:42:08 PDT"]
[Termination "educatedlad won by checkmate"]

1. d4 {[%clk 0:04:58.9]} 1... Nf6 {[%clk 0:04:58.2]} 2. Nf3 {[%clk 0:04:55.1]}
2... b6 {[%clk 0:04:54.1]} 3. Bg5 {[%clk 0:04:54.5]} 3... Bb7 {[%clk 0:04:51.5]}
4. Nc3 {[%clk 0:04:53.2]} 4... d5 {[%clk 0:04:50]} 5. e3 {[%clk 0:04:50.7]} 5...
Nbd7 {[%clk 0:04:48.7]} 6. Bd3 {[%clk 0:04:48]} 6... h6 {[%clk 0:04:47.5]} 7.
Bh4 {[%clk 0:04:46.3]} 7... g5 {[%clk 0:04:45.9]} 8. Bg3 {[%clk 0:04:42.3]} 8...
Ne4 {[%clk 0:04:41.7]} 9. Nb5 {[%clk 0:04:35.4]} 9... Nxg3 {[%clk 0:04:39.8]}
10. hxg3 {[%clk 0:04:34.9]} 10... c5 {[%clk 0:04:34.8]} 11. dxc5 {[%clk
0:04:32.4]} 11... Nxc5 {[%clk 0:04:32.4]} 12. Nxg5 {[%clk 0:04:26.8]} 12... Bg7
{[%clk 0:04:29.1]} 13. Nxf7 {[%clk 0:04:22]} 13... Kxf7 {[%clk 0:04:26.7]} 14.
Qf3+ {[%clk 0:04:12.5]} 14... Kg8 {[%clk 0:04:21.6]} 15. Bg6 {[%clk 0:04:05.6]}
15... Qf8 {[%clk 0:04:17.4]} 16. Qh5 {[%clk 0:03:57.5]} 16... a6 {[%clk
0:04:03.2]} 17. Nc7 {[%clk 0:03:55.3]} 17... Rc8 {[%clk 0:03:54.4]} 18. b4
{[%clk 0:03:51.1]} 18... Rxc7 {[%clk 0:03:52.3]} 19. bxc5 {[%clk 0:03:50]} 19...
Rxc5 {[%clk 0:03:48.6]} 20. Rh4 {[%clk 0:03:48.7]} 20... d4 {[%clk 0:03:41.9]}
21. Qe2 {[%clk 0:03:40.9]} 21... d3 {[%clk 0:03:39.9]} 22. Qxd3 {[%clk
0:03:38.6]} 22... Bxa1 {[%clk 0:03:38]} 23. Rf4 {[%clk 0:03:33.1]} 23... Bf6
{[%clk 0:03:27.7]} 24. e4 {[%clk 0:03:19.6]} 24... Rc3 {[%clk 0:03:21.3]} 25.
Qd2 {[%clk 0:03:02.6]} 25... Qc8 {[%clk 0:03:10.5]} 26. Bf5 {[%clk 0:03:00.3]}
26... e6 {[%clk 0:02:48.4]} 27. Rg4+ {[%clk 0:02:56.4]} 27... Kf7 {[%clk
0:02:43.8]} 28. Bg6+ {[%clk 0:02:52.2]} 28... Ke7 {[%clk 0:02:40.6]} 29. e5
{[%clk 0:02:41.5]} 29... Bg5 {[%clk 0:02:31]} 30. Qd6# {[%clk 0:02:39.7]} 1-0

[Event "Live Chess"]
[Site "Chess.com"]
[Date "2024.06.01"]
[Round "-"]
[White "SavagePawn7"]
[Black "Hoogleboogle"]
[Result "0-1"]
[WhiteElo "683"]
[BlackElo "1342"]
[TimeControl "300"]
[EndTime "11:42:10 PDT"]
[Termination "Hoogleboogle won on time"]

1. e4 {[%clk 0:04:55.8]} 1... e5 {[%clk 0:04:57]} 2. d4 {[%clk 0:04:53.1]} 2...
exd4 {[%clk 0:04:54.1]} 3. c3 {[%clk 0:04:51.7]} 3... dxc3 {[%clk 0:04:50.9]} 4.
Bc4 {[%clk 0:04:49.9]} 4... d6 {[%clk 0:04:44.9]} 5. Qb3 {[%clk 0:04:44.8]} 5...
Be6 {[%clk 0:04:37.1]} 6. Bxe6 {[%clk 0:04:39.7]} 6... fxe6 {[%clk 0:04:35.4]}
7. Qxb7 {[%clk 0:04:35.1]} 7... Nd7 {[%clk 0:04:30.6]} 8. Nxc3 {[%clk
0:04:23.5]} 8... Ngf6 {[%clk 0:04:10.9]} 9. Bg5 {[%clk 0:04:16.6]} 9... Be7
{[%clk 0:04:06.2]} 10. Bxf6 {[%clk 0:04:08.6]} 10... Bxf6 {[%clk 0:04:00.6]} 11.
Nge2 {[%clk 0:03:40.2]} 11... O-O {[%clk 0:03:56.2]} 12. O-O {[%clk 0:03:37.5]}
12... Nc5 {[%clk 0:03:43.6]} 13. Qc6 {[%clk 0:02:45]} 13... a6 {[%clk
0:03:38.8]} 14. b4 {[%clk 0:02:41.8]} 14... Nd3 {[%clk 0:03:18.3]} 15. Qa4
{[%clk 0:02:16.8]} 15... Qb8 {[%clk 0:02:57]} 16. a3 {[%clk 0:02:14.3]} 16... c5
{[%clk 0:02:40.2]} 17. Qc2 {[%clk 0:02:05.2]} 17... c4 {[%clk 0:02:30.8]} 18.
Ng3 {[%clk 0:01:37.6]} 18... Qb6 {[%clk 0:02:07.8]} 19. Na4 {[%clk 0:01:27.5]}
19... Qd4 {[%clk 0:01:58.8]} 20. Rad1 {[%clk 0:01:16.6]} 20... Rfc8 {[%clk
0:01:37.5]} 21. Ne2 {[%clk 0:01:14.4]} 21... Qe5 {[%clk 0:01:26.2]} 22. f4
{[%clk 0:01:00.2]} 22... Qxe4 {[%clk 0:01:20.9]} 23. Nac3 {[%clk 0:00:48.1]}
23... Qf5 {[%clk 0:00:51.9]} 24. Nd4 {[%clk 0:00:37.2]} 24... Qg4 {[%clk
0:00:45.7]} 25. h3 {[%clk 0:00:29.5]} 25... Qg3 {[%clk 0:00:36.5]} 26. Nde2
{[%clk 0:00:25.7]} 26... Qg6 {[%clk 0:00:28.3]} 27. g4 {[%clk 0:00:04.8]} 27...
d5 {[%clk 0:00:19.4]} 28. g5 {[%clk 0:00:03]} 28... Be7 {[%clk 0:00:14.9]} 29.
h4 {[%clk 0:00:01.2]} 29... Qf5 {[%clk 0:00:11.5]} 0-1

[Event "Live Chess"]
[Site "Chess.com"]
[Date "2024.06.01"]
[Round "-"]
[White "CarmelJane"]
[Black "uselessduffer"]
[Result "0-1"]
[WhiteElo "2096"]
[BlackElo "2436"]
[TimeControl "300"]
[EndTime "11:42:10 PDT"]
[Termination "uselessduffer won by checkmate"]

1. e4 {[%clk 0:04:58.3]} 1... g6 {[%clk 0:04:52.7]} 2. d4 {[%clk 0:04:54.6]}
2... Bg7 {[%clk 0:04:51.7]} 3. Nc3 {[%clk 0:04:52.3]} 3... d6 {[%clk 0:04:50.5]}
4. Be3 {[%clk 0:04:51.8]} 4... a6 {[%clk 0:04:49.1]} 5. Qd2 {[%clk 0:04:42.1]}
5... b5 {[%clk 0:04:46.6]} 6. h4 {[%clk 0:04:38.7]} 6... h5 {[%clk 0:04:31.7]}
7. Nh3 {[%clk 0:04:37.1]} 7... Nd7 {[%clk 0:04:25.4]} 8. f4 {[%clk 0:04:34.1]}
8... Ngf6 {[%clk 0:04:05]} 9. Be2 {[%clk 0:04:26.1]} 9... b4 {[%clk 0:04:01.9]}
10. Nd1 {[%clk 0:04:20.8]} 10... Nxe4 {[%clk 0:03:57.9]} 11. Qxb4 {[%clk
0:04:19.5]} 11... Rb8 {[%clk 0:03:45.4]} 12. Qc4 {[%clk 0:04:14.3]} 12... Ng3
{[%clk 0:03:16.4]} 13. Ng5 {[%clk 0:04:11.2]} 13... O-O {[%clk 0:03:07.3]} 14.
Rg1 {[%clk 0:03:46.3]} 14... Nb6 {[%clk 0:02:48]} 15. Qd3 {[%clk 0:03:31.7]}
15... Bf5 {[%clk 0:02:43.9]} 16. Qd2 {[%clk 0:03:27.8]} 16... Nxe2 {[%clk
0:02:31.2]} 17. Kxe2 {[%clk 0:03:15.4]} 17... e5 {[%clk 0:02:03.5]} 18. b3
{[%clk 0:02:53.4]} 18... Nd5 {[%clk 0:01:47.2]} 19. dxe5 {[%clk 0:02:19.5]}
19... dxe5 {[%clk 0:01:44.6]} 20. c4 {[%clk 0:02:15]} 20... Nxf4+ {[%clk
0:01:33.8]} 21. Bxf4 {[%clk 0:02:13.1]} 21... exf4 {[%clk 0:01:33.5]} 22. Qxd8
{[%clk 0:02:07.8]} 22... Rbxd8 {[%clk 0:01:30.7]} 23. Rc1 {[%clk 0:02:04.6]}
23... Rfe8+ {[%clk 0:01:15.9]} 24. Kf2 {[%clk 0:01:57.5]} 24... Bd4+ {[%clk
0:01:13.1]} 25. Kf1 {[%clk 0:01:56.1]} 25... Bd3# {[%clk 0:01:09.5]} 0-1

[Event "Live Chess"]
[Site "Chess.com"]
[Date "2024.06.01"]
[Round "-"]
[White "koekoekoe"]
[Black "grillage"]
[Result "1-0"]
[WhiteElo "2075"]
[BlackElo "1865"]
[TimeControl "300"]
[EndTime "11:42:10 PDT"]
[Termination "koekoekoe won by resignation"]

1. d4 {[%clk 0:04:58.5]} 1... e6 {[%clk 0:04:58.1]} 2. Bf4 {[%clk 0:04:58]} 2...
Nf6 {[%clk 0:04:55.8]} 3. e3 {[%clk 0:04:57.5]} 3... c5 {[%clk 0:04:53.8]} 4. c3
{[%clk 0:04:56.6]} 4... cxd4 {[%clk 0:04:52.6]} 5. cxd4 {[%clk 0:04:56.5]} 5...
Be7 {[%clk 0:04:51.8]} 6. Nc3 {[%clk 0:04:55.1]} 6... d6 {[%clk 0:04:34.4]} 7.
Nf3 {[%clk 0:04:54.4]} 7... b6 {[%clk 0:04:28.4]} 8. h3 {[%clk 0:04:53.7]} 8...
Ba6 {[%clk 0:04:24.5]} 9. Bxa6 {[%clk 0:04:51.6]} 9... Nxa6 {[%clk 0:04:21.3]}
10. Qa4+ {[%clk 0:04:50.8]} 10... Kf8 {[%clk 0:03:57.6]} 11. Qxa6 {[%clk
0:04:46]} 1-0

[Event "Live Chess"]
[Site "Chess.com"]
[Date "2024.06.01"]
[Round "-"]
[White "powerchs"]
[Black "McFim"]
[Result "0-1"]
[WhiteElo "1241"]
[BlackElo "1593"]
[TimeControl "300"]
[EndTime "11:42:28 PDT"]
[Termination "McFim won by resignation"]

1. e4 {[%clk 0:04:56]} 1... c6 {[%clk 0:04:58.1]} 2. d4 {[%clk 0:04:53.7]} 2...
d5 {[%clk 0:04:57.5]} 3. Nc3 {[%clk 0:04:52.7]} 3... dxe4 {[%clk 0:04:56.4]} 4.
Nxe4 {[%clk 0:04:51.7]} 4... Nd7 {[%clk 0:04:56]} 5. Bc4 {[%clk 0:04:46.6]} 5...
Ngf6 {[%clk 0:04:48.2]} 6. Qf3 {[%clk 0:04:30.7]} 6... e6 {[%clk 0:04:45.3]} 7.
Ne2 {[%clk 0:04:26.5]} 7... Be7 {[%clk 0:04:41]} 8. O-O {[%clk 0:04:22]} 8...
Nxe4 {[%clk 0:04:37.8]} 9. Qxe4 {[%clk 0:04:20.4]} 9... Nf6 {[%clk 0:04:36.5]}
10. Qf3 {[%clk 0:04:16.4]} 10... h6 {[%clk 0:04:33.1]} 11. c3 {[%clk 0:04:14.3]}
11... O-O {[%clk 0:04:31.3]} 12. Bd3 {[%clk 0:04:12.4]} 12... c5 {[%clk
0:04:27.2]} 13. dxc5 {[%clk 0:04:08.8]} 13... Bxc5 {[%clk 0:04:24.4]} 14. Ng3
{[%clk 0:03:48.2]} 14... e5 {[%clk 0:04:06.9]} 15. Ne4 {[%clk 0:03:41]} 15...
Be7 {[%clk 0:04:02.5]} 16. Nxf6+ {[%clk 0:03:15.7]} 16... Bxf6 {[%clk
0:04:00.5]} 17. Qe4 {[%clk 0:03:08.8]} 17... g6 {[%clk 0:03:58.9]} 18. Bxh6
{[%clk 0:03:06.5]} 18... Re8 {[%clk 0:03:56.4]} 19. h4 {[%clk 0:03:02.4]} 19...
Bf5 {[%clk 0:03:53.2]} 20. Qxb7 {[%clk 0:02:11]} 20... Qxd3 {[%clk 0:03:49.8]}
21. Rfd1 {[%clk 0:02:09.2]} 21... Qe4 {[%clk 0:03:43.7]} 22. Re1 {[%clk
0:01:58.1]} 22... Qxb7 {[%clk 0:03:41.3]} 0-1

[Event "Live Chess"]
[Site "Chess.com"]
[Date "2024.06.01"]
[Round "-"]
[White "Trendle"]
[Black "Duke_of_Bebington"]
[Result "1-0"]
[WhiteElo "2621"]
[BlackElo "1609"]
[TimeControl "300"]
[EndTime "11:42:31 PDT"]
[Termination "Trendle won by resignation"]

1. f4 {[%clk 0:04:55.5]} 1... e5 {[%clk 0:04:58.2]} 2. fxe5 {[%clk 0:04:53.3]}
2... d6 {[%clk 0:04:57.4]} 3. exd6 {[%clk 0:04:53.2]} 3... Bxd6 {[%clk
0:04:56.6]} 4. Nf3 {[%clk 0:04:52.9]} 4... Bg4 {[%clk 0:04:54.4]} 5. e3 {[%clk
0:04:45.8]} 5... Nf6 {[%clk 0:04:47.3]} 6. d4 {[%clk 0:04:43.9]} 6... O-O {[%clk
0:04:45.3]} 7. Nc3 {[%clk 0:04:42.9]} 7... Nc6 {[%clk 0:04:43.6]} 8. Bb5 {[%clk
0:04:40.9]} 8... Nb4 {[%clk 0:04:28.3]} 9. O-O {[%clk 0:04:38]} 9... c6 {[%clk
0:04:22.7]} 10. Bc4 {[%clk 0:04:34.8]} 10... Nbd5 {[%clk 0:04:21.4]} 11. h3
{[%clk 0:04:29.9]} 11... Bh5 {[%clk 0:04:15.2]} 12. Qd3 {[%clk 0:04:22.3]} 12...
Bg6 {[%clk 0:04:12.4]} 13. Qe2 {[%clk 0:04:17.5]} 13... Nxc3 {[%clk 0:04:05.8]}
14. bxc3 {[%clk 0:04:16.5]} 14... Ne4 {[%clk 0:04:02.8]} 15. Qe1 {[%clk
0:04:14.4]} 15... Bg3 {[%clk 0:03:56.1]} 16. Qd1 {[%clk 0:04:05.6]} 16... Nxc3
{[%clk 0:03:49.9]} 17. Qd2 {[%clk 0:04:05.3]} 17... Ne4 {[%clk 0:03:47.6]} 18.
Qb4 {[%clk 0:03:59.6]} 18... Qb6 {[%clk 0:03:38.5]} 19. Ba3 {[%clk 0:03:52.8]}
19... Rfe8 {[%clk 0:03:14]} 20. Rab1 {[%clk 0:03:48.6]} 20... Qxb4 {[%clk
0:03:00.4]} 21. Bxb4 {[%clk 0:03:48.5]} 21... a5 {[%clk 0:02:55.5]} 22. Be1
{[%clk 0:03:39]} 22... Bxe1 {[%clk 0:02:47.2]} 23. Rbxe1 {[%clk 0:03:31.3]}
23... b5 {[%clk 0:02:42.3]} 24. Bd3 {[%clk 0:03:30.3]} 24... Nc3 {[%clk
0:02:37.8]} 25. Bxg6 {[%clk 0:03:25.2]} 25... hxg6 {[%clk 0:02:37.7]} 26. Ne5
{[%clk 0:03:20.5]} 26... Rac8 {[%clk 0:02:28.9]} 27. Nxf7 {[%clk 0:03:17.6]}
27... Nxa2 {[%clk 0:02:10.6]} 28. Nd6 {[%clk 0:03:15.9]} 28... Nb4 {[%clk
0:02:03.2]} 29. c3 {[%clk 0:03:13.6]} 29... Nd3 {[%clk 0:02:00.9]} 30. Ra1
{[%clk 0:02:52.5]} 30... a4 {[%clk 0:01:56.5]} 31. Ra2 {[%clk 0:02:46.4]} 31...
Rcd8 {[%clk 0:01:53.6]} 32. Nxe8 {[%clk 0:02:41.8]} 32... Rxe8 {[%clk
0:01:53.5]} 33. Rf3 {[%clk 0:02:27.5]} 33... Nc1 {[%clk 0:01:46.2]} 34. Ra3
{[%clk 0:02:24.1]} 34... Nb3 {[%clk 0:01:41.9]} 35. Kf2 {[%clk 0:02:20.2]} 35...
Nd2 {[%clk 0:01:39.4]} 36. Ke2 {[%clk 0:02:14.4]} 36... Nc4 {[%clk 0:01:38.4]}
37. Ra2 {[%clk 0:02:13]} 37... a3 {[%clk 0:01:36.6]} 38. Kd3 {[%clk 0:02:09.6]}
38... Nb2+ {[%clk 0:01:20.1]} 39. Kc2 {[%clk 0:02:06.7]} 39... Nc4 {[%clk
0:01:17.1]} 40. Kb3 {[%clk 0:02:03.1]} 40... Nd2+ {[%clk 0:01:16.2]} 41. Rxd2
{[%clk 0:02:01.7]} 1-0

[Event "Live Chess"]
[Site "Chess.com"]
[Date "2024.06.01"]
[Round "-"]
[White "viktorskliarov"]
[Black "mrsmarple1968"]
[Result "1-0"]
[WhiteElo "2646"]
[BlackElo "1785"]
[TimeControl "300"]
[EndTime "11:42:48 PDT"]
[Termination "viktorskliarov won by resignation"]

1. e4 {[%clk 0:04:57]} 1... e5 {[%clk 0:04:54.7]} 2. Nc3 {[%clk 0:04:55.8]} 2...
Nf6 {[%clk 0:04:47.9]} 3. Bc4 {[%clk 0:04:54.6]} 3... Be7 {[%clk 0:04:35.1]} 4.
d3 {[%clk 0:04:53.3]} 4... d6 {[%clk 0:04:33.7]} 5. h3 {[%clk 0:04:51.9]} 5...
O-O {[%clk 0:04:31.8]} 6. Nge2 {[%clk 0:04:50.1]} 6... c6 {[%clk 0:04:27.3]} 7.
Ng3 {[%clk 0:04:48.2]} 7... d5 {[%clk 0:04:23.3]} 8. Bb3 {[%clk 0:04:46.9]} 8...
h6 {[%clk 0:04:19.7]} 9. O-O {[%clk 0:04:44.1]} 9... Be6 {[%clk 0:04:14.6]} 10.
Qf3 {[%clk 0:04:42.5]} 10... d4 {[%clk 0:04:05.6]} 11. Nce2 {[%clk 0:04:36.2]}
11... Bxb3 {[%clk 0:04:00.3]} 12. axb3 {[%clk 0:04:34.3]} 12... Ne8 {[%clk
0:03:43.8]} 13. Nf5 {[%clk 0:04:30]} 13... Bg5 {[%clk 0:03:39.6]} 14. Qg3 {[%clk
0:04:25.4]} 14... g6 {[%clk 0:03:33.1]} 15. Nxh6+ {[%clk 0:04:19.8]} 15... Bxh6
{[%clk 0:03:16.7]} 16. Bxh6 {[%clk 0:04:19.7]} 16... Ng7 {[%clk 0:03:15.4]} 17.
Qxe5 {[%clk 0:04:18.8]} 17... f6 {[%clk 0:03:11.3]} 18. Qxd4 {[%clk 0:04:17.5]}
18... Qe7 {[%clk 0:03:08.6]} 19. Rxa7 {[%clk 0:04:05]} 19... Rxa7 {[%clk
0:02:58.3]} 20. Qxa7 {[%clk 0:04:03.3]} 20... Qc7 {[%clk 0:02:55.4]} 21. Bf4
{[%clk 0:03:57.6]} 21... Qc8 {[%clk 0:02:49.8]} 22. Bxb8 {[%clk 0:03:52.1]}
22... Qxb8 {[%clk 0:02:47.3]} 23. Qxb8 {[%clk 0:03:51.8]} 23... Rxb8 {[%clk
0:02:45.6]} 24. Ra1 {[%clk 0:03:51.7]} 24... Ne6 {[%clk 0:02:39.8]} 25. f4
{[%clk 0:03:50.1]} 25... c5 {[%clk 0:02:35.2]} 26. Kf2 {[%clk 0:03:48.1]} 26...
Kf7 {[%clk 0:02:32.2]} 27. Ke3 {[%clk 0:03:46.6]} 27... Ke7 {[%clk 0:02:30.4]}
28. d4 {[%clk 0:03:45.6]} 28... cxd4+ {[%clk 0:02:27.3]} 29. Nxd4 {[%clk
0:03:45.5]} 29... Nc5 {[%clk 0:02:22.4]} 30. Ra5 {[%clk 0:03:43.9]} 30... b6
{[%clk 0:02:19.2]} 31. Rxc5 {[%clk 0:03:40.5]} 31... bxc5 {[%clk 0:02:17.2]} 32.
Nc6+ {[%clk 0:03:39.5]} 1-0

[Event "Live Chess"]
[Site "Chess.com"]
[Date "2024.06.01"]
[Round "-"]
[White "Grace6363"]
[Black "Queensandpawns"]
[Result "0-1"]
[WhiteElo "1151"]
[BlackElo "2434"]
[TimeControl "300"]
[EndTime "11:42:52 PDT"]
[Termination "Queensandpawns won by resignation"]

1. d4 {[%clk 0:04:55.7]} 1... e5 {[%clk 0:04:59.9]} 2. dxe5 {[%clk 0:04:53.8]}
2... Bc5 {[%clk 0:04:59.3]} 3. Nf3 {[%clk 0:04:52.7]} 3... d6 {[%clk 0:04:58.8]}
4. e3 {[%clk 0:04:48.2]} 4... Ne7 {[%clk 0:04:58.7]} 5. Bc4 {[%clk 0:04:41.6]}
5... Nbc6 {[%clk 0:04:54.1]} 6. exd6 {[%clk 0:04:33.3]} 6... cxd6 {[%clk
0:04:54]} 7. Qe2 {[%clk 0:04:30.4]} 7... O-O {[%clk 0:04:53.9]} 8. O-O {[%clk
0:04:29.1]} 8... Be6 {[%clk 0:04:53.3]} 9. Bxe6 {[%clk 0:04:26.7]} 9... fxe6
{[%clk 0:04:53.2]} 10. Nc3 {[%clk 0:04:24.2]} 10... Qe8 {[%clk 0:04:52.3]} 11.
Ne4 {[%clk 0:04:16.5]} 11... Qh5 {[%clk 0:04:51.3]} 12. Nxc5 {[%clk 0:04:12.6]}
12... dxc5 {[%clk 0:04:51.2]} 13. Bd2 {[%clk 0:03:55.9]} 13... Ne5 {[%clk
0:04:49.3]} 14. Rae1 {[%clk 0:03:24.2]} 14... Rxf3 {[%clk 0:04:44.4]} 15. gxf3
{[%clk 0:03:20.8]} 15... Nxf3+ {[%clk 0:04:44.3]} 16. Kg2 {[%clk 0:03:08.7]}
16... Qg4+ {[%clk 0:04:40.6]} 17. Kh1 {[%clk 0:03:00.6]} 17... Qh3 {[%clk
0:04:40.5]} 18. Qxf3 {[%clk 0:02:44.3]} 18... Qxf3+ {[%clk 0:04:40.4]} 19. Kg1
{[%clk 0:02:42.9]} 19... Nf5 {[%clk 0:04:40.3]} 20. Bc3 {[%clk 0:02:31.4]} 20...
Nh4 {[%clk 0:04:36.5]} 0-1